Cogmind - Beta 12 X1 @@@ ROGUE MODE // 2022.07.30 @ 09:47:27 Player: Plexion Result: Destroyed by 8R-AWN with 8R-AWN's Boregun Performance ------------- Evolutions (1) 500 Regions Visited (5) 1000 Robots Destroyed (58) 290 Value Destroyed (1136) 1136 Prototype IDs (23) 460 Alien Tech Used (0) 0 Bonus (389) 389 TOTAL SCORE: 3775 Bonus ------- High Alert Combat Kills 89 Aligned with FarCom 300 Cogmind --------- Core Integrity 0/400 Matter 238/300 Energy 99/100 System Corruption 0% Temperature Cool (0) Movement Core (350) Ox6 Location -9/Exiles Parts ------- > --- POWER (1) -------- (None) > --- PROPULSION (3) --- (None) > --- UTILITY (3) ------ Large Storage Unit Targeting Computer > --- WEAPON (2) ------- Light Assault Rifle > --- INVENTORY (15) --- Cooling System Light Armor Plating Grenade Launcher Rocket Launcher Peak State ------------ > --- POWER ------------ Improved Ion Engine > --- PROPULSION ------- Light Treads Light Treads Light Treads > --- UTILITY ---------- Large Storage Unit Seismic Detector Light Armor Plating > --- WEAPON ----------- Heavy Assault Rifle Heavy Assault Rifle > --- INVENTORY -------- Ion Engine Improved Ion Engine Light Treads Light Treads Cooling System High-capacity Matter Pod Machine Analyzer Targeting Computer Light Armor Plating Light Assault Rifle Light Assault Rifle Light Assault Rifle Light Cannon Grenade Launcher Rocket Launcher [Rating: 14] Favorites ----------- Power Ion Engine Engine Ion Engine Propulsion Light Treads Treads Light Treads Utility Large Storage Unit Device Seismic Detector Storage Large Storage Unit Processor Targeting Computer Protection Light Armor Plating Weapon Heavy Assault Rifle Ballistic Gun Heavy Assault Rifle Launcher Grenade Launcher Special Weapon Plasma Cutter Build | -11 -10 -10 -9 -9 -9 ------- Run | Scr Mat Min Mat Min Exi Slots Evolved 2 | . . . 2 . . Power . | . . . . . . Propulsion 1 | . . . 1 . . Utility 1 | . . . 1 . . Weapon . | . . . . . . Parts Attached 46 | 6 4 4 20 2 10 Power 5 | 1 . . 2 1 1 Engine 5 | 1 . . 2 1 1 Core . | . . . . . . Reactor . | . . . . . . Propulsion 8 | 2 . . 4 . 2 Treads 8 | 2 . . 4 . 2 Leg . | . . . . . . Wheel . | . . . . . . Hover . | . . . . . . Flight . | . . . . . . Utility 9 | 1 2 . 4 1 1 Device 1 | . 1 . . . . Storage 2 | 1 1 . . . . Processor 1 | . . . 1 . . Hackware . | . . . . . . Protection 5 | . . . 3 1 1 Artifact . | . . . . . . Weapon 24 | 2 2 4 10 . 6 Energy Gun . | . . . . . . Energy Cannon . | . . . . . . Ballistic Gun 16 | 2 1 2 7 . 4 Ballistic Cannon . | . . . . . . Launcher 7 | . 1 2 3 . 1 Special Weapon 1 | . . . . . 1 Impact Weapon . | . . . . . . Slashing Weapon . | . . . . . . Piercing Weapon . | . . . . . . Special Melee Weapon . | . . . . . . Unidentified Prototypes . | . . . . . . Parts Lost 17 | . . . 2 1 14 Power 2 | . . . . . 2 Propulsion 5 | . . . . . 5 Utility 5 | . . . 2 1 2 Weapon 5 | . . . . . 5 Highest Loss Streak 14 | . . . 1 1 14 To Critical Strikes 10 | . . . . . 10 Average Slot Usage (%) 97 | . 98 100 96 99 96 Engine 11 | . 14 14 11 11 10 Treads 30 | . 28 28 31 33 31 Device 8 | . 12 14 10 . . Storage 12 | . 14 14 11 11 11 Processor 3 | . . . . 11 11 Protection 6 | . . . 9 10 10 Ballistic Gun 23 | . 25 27 21 22 20 Naked Turns . | . . . . . . Heaviest Build 38 | 13 29 29 37 38 37 Greatest Support 60 | 40 40 40 60 60 60 Greatest Overweight (x) . | . . . . . . Average Overweight (x) . | . . . . . . Largest Inventory Capacity 15 | 8 15 15 15 15 15 Average Capacity 13 | 6 8 15 15 15 15 Most Carried 15 | 2 7 8 15 15 15 Average Carried 10 | . 4 7 12 14 12 Final Capacity 15 | 8 15 15 15 15 15 Final Carried 15 | 2 6 8 15 14 4 Class Distribution -------------------- 53% | Mutant 46% | Scavenger-Mutant Dominant Class ---------------- Mutant | -10/Materials Mutant | -10/Mines Scavenger-Mutant | -9/Materials Scavenger-Mutant | -9/Mines Scavenger-Mutant | -9/Exiles Resources | -11 -10 -10 -9 -9 -9 ----------- Run | Scr Mat Min Mat Min Exi Matter Collected 1645 | 204 193 303 596 143 206 Remotely . | . . . . . . Salvage Created 1609 | . 187 269 937 209 7 Parts 124 | . 17 18 74 15 . Haulers Intercepted 2 | . . . 2 . . Recyclers Shooed 3 | . 1 . 1 1 . Parts Field Recycled . | . . . . . . Retrieved Matter . | . . . . . . Parts Self-Destructed . | . . . . . . Prevented . | . . . . . . Kills | -11 -10 -10 -9 -9 -9 ------- Run | Scr Mat Min Mat Min Exi Combat Hostiles Destroyed 44 | . 6 4 24 7 3 Guns 24 | . 3 . 14 7 . AOE 20 | . 3 4 10 . 3 Classes Destroyed 11 | . 4 2 4 . 1 Worker 7 | . . 1 6 . . Builder 1 | . . . 1 . . Hauler 2 | . . . 2 . . Recycler 2 | . . 1 1 . . Mechanic 2 | . 1 . 1 . . Operator 2 | . 1 . 1 . . Watcher 1 | . . . 1 . . Swarmer 20 | . 3 . 13 4 . Grunt 16 | . 3 4 6 3 . Sentry 5 | . . . 5 . . Assembled 3 | . . . . . 3 Best Kill Streak 8 | . 3 3 8 4 3 Combat Bots Only 4 | . 3 2 4 4 3 Max Kills in Single Turn 4 | . 2 2 4 1 1 Gunslinging . | . . . . . . Exploded 3 | . 2 2 3 . 1 Melee . | . . . . . . Uniques/NPCs Destroyed . | . . . . . . Combat | -11 -10 -10 -9 -9 -9 -------- Run | Scr Mat Min Mat Min Exi Damage Taken 2793 | . 284 74 819 312 1304 Core 469 | . 40 21 104 20 284 Absorbed by Shields . | . . . . . . Core Remaining (%) 87 | 100 . 75 . . . Volleys Fired 193 | . 26 7 74 21 65 Largest 2 | . 2 2 2 2 2 Hottest 46 | . 40 40 46 46 46 Shots Fired 345 | . 45 9 141 42 108 Gun 320 | . 41 4 134 42 99 Cannon . | . . . . . . Launcher 20 | . 4 5 7 . 4 Special 5 | . . . . . 5 Kinetic 320 | . 41 4 134 42 99 Thermal 5 | . . . . . 5 Explosive 20 | . 4 5 7 . 4 Electromagnetic . | . . . . . . Robot Hit Streak 22 | . 6 3 9 14 22 Robot Miss Streak 3 | . 2 1 3 2 1 Penetration Max . | . . . . . . Secondary Targets 2 | . . . . 2 . Max Gunslinging Chain 1 | . . . . 1 . Shots Hit Robots 240 | . 27 5 82 35 91 Core Hits 111 | . 17 11 52 10 21 Critical Kills . | . . . . . . Critical Parts Destroyed . | . . . . . . Critical Strikes 3 | . . . 2 . 1 Destroy 3 | . . . 2 . 1 Melee Attacks . | . . . . . . Impact . | . . . . . . Slashing . | . . . . . . Piercing . | . . . . . . Sneak Attacks . | . . . . . . Combat Hostiles . | . . . . . . Follow-up Attacks . | . . . . . . Damage Inflicted 4344 | . 440 450 1872 536 1046 Guns 2756 | . 279 28 1063 536 850 Cannons . | . . . . . . Explosions 1584 | . 161 422 809 . 192 Melee . | . . . . . . Ramming . | . . . . . . Kinetic 2756 | . 279 28 1063 536 850 Thermal 4 | . . . . . 4 Explosive 1584 | . 161 422 809 . 192 Electromagnetic . | . . . . . . Impact . | . . . . . . Slashing . | . . . . . . Piercing . | . . . . . . Highest Corruption . | . . . . . . Average Corruption . | . . . . . . Corruption Purged . | . . . . . . Corruption Blocked . | . . . . . . Overload Shots . | . . . . . . Overflow Damage 41 | . 6 11 24 . . Projectiles . | . . . . . . Explosions 41 | . 6 11 24 . . Melee . | . . . . . . Knockbacks . | . . . . . . Impact . | . . . . . . Kinetic . | . . . . . . Secondary . | . . . . . . Self-Inflicted Damage 87 | . 38 49 . . . Shots 3 | . 1 2 . . . Rammed . | . . . . . . Targets Rammed . | . . . . . . Kicked . | . . . . . . Crushed . | . . . . . . Highest Temperature 29 | . 18 5 29 27 12 Average Temperature 8 | . 9 2 9 7 5 Received Heat Transfer 555 | . 87 15 306 147 . Siege Activations . | . . . . . . Robots Corrupted . | . . . . . . Combat Hostiles . | . . . . . . Parts Fried . | . . . . . . Impact Corruptions . | . . . . . . Robots Melted . | . . . . . . Combat Hostiles . | . . . . . . Parts Melted . | . . . . . . Heat Transferred 36 | . . . . . 36 Parts Sabotaged . | . . . . . . Parts Stolen . | . . . . . . Parts Stripped . | . . . . . . Power Chain Reactions . | . . . . . . Missiles Intercepted . | . . . . . . Alert | -11 -10 -10 -9 -9 -9 ------- Run | Scr Mat Min Mat Min Exi Peak Influence 743 | . 237 230 743 426 . Initial 261 | . . 30 31 261 . Average 210 | . 88 81 320 373 . Maximum Alert Level 3 | . 1 1 3 2 . Low Security (%) 57 | 100 91 77 40 . . Level 1 22 | . 8 22 21 69 . Level 2 18 | . . . 36 30 . Level 3 . | . . . 1 . . Level 4 . | . . . . . . Level 5 . | . . . . . . High Security . | . . . . . . Max Security . | . . . . . . Squads Dispatched 6 | . 2 . 4 . . Investigation 5 | . 2 . 3 . . Extermination . | . . . . . . Reinforcement 1 | . . . 1 . . Assault . | . . . . . . Garrison . | . . . . . . Intercept . | . . . . . . Searches Triggered . | . . . . . . Construction Impeded . | . . . . . . Haulers Reinforced . | . . . . . . Active Scanning Responses . | . . . . . . Cargo Convoy Interrupts . | . . . . . . Stealth | -11 -10 -10 -9 -9 -9 --------- Run | Scr Mat Min Mat Min Exi Distress Signals 9 | . 2 . 7 . . Communications Jammed . | . . . . . . Distress Signals . | . . . . . . Times Spotted 68 | . 13 4 39 7 5 Peak Tracking Total 9 | . 3 2 6 3 9 Tactical Retreats 5 | . . . 4 1 . Traps | -11 -10 -10 -9 -9 -9 ------- Run | Scr Mat Min Mat Min Exi Traps Triggered 2 | . 2 . . . . Indirectly . | . . . . . . Trap Hack Attempts . | . . . . . . Triggered . | . . . . . . Disarmed 4 | . . . 4 . . Reprogrammed . | . . . . . . Reused . | . . . . . . Traps Extracted . | . . . . . . Installed . | . . . . . . Triggered . | . . . . . . Exploded 3 | . . . . . 3 Machines | -11 -10 -10 -9 -9 -9 ---------- Run | Scr Mat Min Mat Min Exi Machines Disabled 6 | . . . . . 6 Max in Single Turn 1 | . . . . . 1 Machines Sabotaged . | . . . . . . Garrisons Compromised . | . . . . . . Overloaded Fab Kills . | . . . . . . Hacking | -11 -10 -10 -9 -9 -9 --------- Run | Scr Mat Min Mat Min Exi Machines Accessed 15 | . 5 . 8 . 2 Terminals 11 | . 5 . 6 . . Fabricators . | . . . . . . Repair Stations . | . . . . . . Recycling Units 2 | . . . 2 . . Scanalyzers . | . . . . . . Garrison Access . | . . . . . . Total Hacks 35 | . 15 . 18 . 2 Successful 23 | . 9 . 12 . 2 Failed 12 | . 6 . 6 . . Catastrophic 1 | . . . 1 . . Database Lockouts . | . . . . . . Manual 33 | . 15 . 17 . 1 Terminals 31 | . 15 . 16 . . Fabricators . | . . . . . . Repair Stations . | . . . . . . Recycling Units 2 | . . . 2 . . Scanalyzers . | . . . . . . Garrison Access . | . . . . . . Terminal Hacks 18 | . 8 . 8 . 2 Record 1 | . . . . . 1 Part Schematic 1 | . 1 . . . . Robot Analysis 6 | . 5 . 1 . . Terminal Index 1 | . . . 1 . . Disarm Traps 1 | . . . 1 . . Recall Investigation 2 | . . . 2 . . Hauler Manifests 1 | . . . 1 . . Zone Layout 4 | . 2 . 2 . . EX-Prototype ID Bank 1 | . . . . . 1 Fabricator Hacks . | . . . . . . Repair Station Hacks . | . . . . . . Recycling Unit Hacks . | . . . . . . Scanalyzer . | . . . . . . Garrison Access Hacks . | . . . . . . Unauthorized Hacks 5 | . 1 . 4 . . Terminals 3 | . 1 . 2 . . Track 2 | . 1 . 1 . . Disrupt 1 | . . . 1 . . Fabricators . | . . . . . . Repair Stations . | . . . . . . Recycling Units 2 | . . . 2 . . Tunnel 2 | . . . 2 . . Scanalyzers . | . . . . . . Garrison Access . | . . . . . . Data Cores Recovered 2 | . 1 . 1 . . Used 1 | . 1 . . . . Hacking Detections 9 | . 5 . 4 . . Full Trace Events 1 | . . . 1 . . Feedback Events . | . . . . . . Feedback Blocked . | . . . . . . Robot Schematics Acquired . | . . . . . . Robots Built . | . . . . . . Authchips . | . . . . . . Time . | . . . . . . Total Robot Build Rating . | . . . . . . Part Schematics Acquired 1 | . 1 . . . . Parts Built . | . . . . . . Authchips . | . . . . . . Time . | . . . . . . Total Part Build Rating . | . . . . . . Parts Repaired . | . . . . . . Time . | . . . . . . Parts Recycled . | . . . . . . Recycled Matter . | . . . . . . Retrieved Matter . | . . . . . . Retrieved Components . | . . . . . . Parts Scanalyzed . | . . . . . . Part Schematics Acquired . | . . . . . . Parts Damaged . | . . . . . . Bothacking | -11 -10 -10 -9 -9 -9 ------------ Run | Scr Mat Min Mat Min Exi Used RIF Installer . | . . . . . . Robots Hacked . | . . . . . . Non-combat . | . . . . . . Combat . | . . . . . . Robot Hacks Applied . | . . . . . . Relay Couplers Released . | . . . . . . Fabnet Peak Effective % . | . . . . . . Robots Rewired . | . . . . . . Allies Hacked . | . . . . . . Hacks Repelled . | . . . . . . Allies | -11 -10 -10 -9 -9 -9 -------- Run | Scr Mat Min Mat Min Exi Total Allies . | . . . . . . Largest Group . | . . . . . . Highest-Rated Group . | . . . . . . Highest-Rated Ally . | . . . . . . Total Orders . | . . . . . . Ally Attacks . | . . . . . . Total Damage . | . . . . . . Kills . | . . . . . . Allies Corrupted . | . . . . . . Allies Melted . | . . . . . . Intel | -11 -10 -10 -9 -9 -9 ------- Run | Scr Mat Min Mat Min Exi Robot Analysis Total 6 | . 5 . 1 . . Derelict Logs Recovered 2 | . . 2 . . . Drone Launches . | . . . . . . Drone Recoveries . | . . . . . . Exploration | -11 -10 -10 -9 -9 -9 ------------- Run | Scr Mat Min Mat Min Exi Turns Passed 4077 | 82 565 812 1315 275 1028 Spaces Moved 2065 | 46 299 473 627 125 495 Core 1 | 1 . . . . . Treads 2064 | 45 299 473 627 125 495 Legs . | . . . . . . Wheels . | . . . . . . Hover . | . . . . . . Flight . | . . . . . . Fastest Speed 50 | 50 160 160 160 160 160 Average Speed 159 | 157 160 160 160 160 160 Slowest Speed 160 | 160 160 160 160 160 160 Overloaded Moves . | . . . . . . Propulsion Burnouts . | . . . . . . Robots Hopped . | . . . . . . Cave-ins Triggered . | . . . . . . Exploration Rate (%) 49 | 3 57 85 53 27 69 Regions Visited 5 Branch Regions 3 Pre-discovered Areas 4 | . . 1 2 . 1 Known Exits Taken . | . . . . . . Unknown Exits Taken 5 | 1 1 1 1 1 . Scrap Searched 2 | . . 2 . . . Spaces Dug 35 | . . 10 . . 25 Terrain Destroyed 152 | . 18 45 64 . 25 Melee . | . . . . . . Projectile . | . . . . . . AOE 152 | . 18 45 64 . 25 Terrain Rammed . | . . . . . . Walls Destroyed . | . . . . . . Machines Disabled . | . . . . . . Actions | -11 -10 -10 -9 -9 -9 --------- Run | Scr Mat Min Mat Min Exi Total 2519 | 53 344 518 809 159 636 Wait 164 | . 11 33 60 10 50 Move 2060 | 45 298 472 626 124 495 Hop . | . . . . . . Pick Up 31 | 2 4 2 16 . 7 Fast Attach 8 | 6 1 . . 1 . Attach 14 | . . . 5 1 8 Detach 1 | . . . . 1 . Swap 24 | . 3 4 15 . 2 Drop 24 | . 1 . 13 1 9 Fire 193 | . 26 7 74 21 65 Melee . | . . . . . . Ram . | . . . . . . Kick . | . . . . . . Crush . | . . . . . . Escape Stasis . | . . . . . . Rewire . | . . . . . . Trap . | . . . . . . Miscellaneous . | . . . . . . Route ------- -11/Scrapyard -10/Materials (discovered 2 exits: *Mat / [*Min]) -10/Mines -9/Materials (discovered 3 exits: [*Mat x2] / [*Min]) -9/Mines (discovered 2 exits: [*Mat] / *Exi) -9/Exiles History --------- Turn | Location | Event 7 | -11/Scrapyard | Discovered new exit (range 15) 83 | -11/Scrapyard | Entered Materials 325 | -10/Materials | Build established: Mutant 358 | -10/Materials | Discovered new exit (range 11) 444 | -10/Materials | Discovered new exit (range 16) 648 | -10/Materials | Entered Mines 757 | -10/Mines | Discovered new exit (range 8) 784 | -10/Mines | Learned Materials terminal intel 959 | -10/Mines | Received a Rocket Launcher from a helpful Derelict 975 | -10/Mines | Learned location of Storage (-8) 1460 | -10/Mines | Entered Materials 1460 | -9/Materials | Evolved 2 slots: Propulsion x1, Utility x1 1461 | -9/Materials | Loaded intel: 12 terminal locations 1780 | -9/Materials | Discovered new exit (range 17) 2339 | -9/Materials | Build established: Scavenger-Mutant 2534 | -9/Materials | Discovered new exit (range 10) 2744 | -9/Materials | Discovered new exit (range 7) 2775 | -9/Materials | Entered Mines 2864 | -9/Mines | Discovered new exit (range 13) 3042 | -9/Mines | Deemed a non-threat by the Exiles lab entrance 3044 | -9/Mines | Discovered new exit (range 5) 3050 | -9/Mines | Entered Exiles 3090 | -9/Exiles | Met 8R-AWN 3116 | -9/Exiles | Met EX-HEX 3186 | -9/Exiles | Met EX-DEC 3217 | -9/Exiles | Learned location of Zion (-6) 3258 | -9/Exiles | Met EX-BIN 3276 | -9/Exiles | Aligned with FarCom system 3278 | -9/Exiles | Given EX-Vault access code 3314 | -9/Exiles | Opened EX-Vault 3350 | -9/Exiles | Warned to stay clear of 0b10 Research branches 3831 | -9/Exiles | Attacked by the Exiles 3981 | -9/Exiles | Core integrity fell below 50% 4054 | -9/Exiles | Core integrity fell below 20% 4078 | -9/Exiles | Destroyed by 8R-AWN with 8R-AWN's Boregun Last Messages --------------- 04044_ HV Slug penetrates Wall. 04047_ Wall collapses. 04048_ Penetrated by HV Slug. 04048_ Lgt. Armor Plating destroyed. 04048_ Penetrated by HV Slug. 04048_ Critical hit (Destroy). 04048_ Lgt. Assault Rifle destroyed. 04053_ HV Slug penetrates Wall. 04053_ Penetrated by HV Slug. 04057_ HV Slug penetrates Wall. 04057_ Penetrated by HV Slug. 04061_ Wall collapses. 04061_ Penetrated by HV Slug. 04065_ HV Slug penetrates Earth. 04070_ Penetrated by HV Slug. 04070_ HV Slug penetrates Earth. 04074_ Penetrated by HV Slug. 04078_ Critical hit (Destroy). 04078_ Lgt. Treads destroyed. 04078_ Penetrated by HV Slug. Map ----- +----------------------------------------------------+ | ?????????????????????????????????????????????????? | | ?????????????????????????????????????????????????? | | ?????????????????????????????????????????????????? | | ?????????????????????????????????????????????????? | | ?????????????????????????????????????????????????? | | ?????????????????????????????????????????????????? | | ?????????????????????????????????????????????????? | | ????????? ???????????????????????????????????????? | | ???????? ??????????????????????????????????????? | | ????????# ????????????????????????????????????? | | ????????# ???????????????????????????????????? | | ?????????# ?????????????#######??????????????? | | ?????????# #######??????#! "#??????????????? | | ?????????# # "##?????# "#??????????????? | | ??????????# #?????# "#??????????????? | | ??????????##" ##???## ""#?????????????#? | | ??????????#"" #####" ""#???????????? " | | ?????????????# ##" ""#????????????" " | | ?????????????## #"" ###????????????" | | ??????????????#"## #### #????????"" | | ?????????????????#### # ###??????"" | | ????????????????????### # #?????? | | ??????????????########" #???????" | | ??????????????# !!""""" #???????# | | ??????????????#! g ;;# ###???### | | ??????????????#! !@;###" "#####X# | | ??????????????#! !];; ##" | | ??????????????# !""""""#;; ##"# * | | ??????????????########## # # #### % | | ???????????????????????# ? # #?### * | | ???????????????????????# ?##?# #??### | | ???????????????????????# ?????# #???## | | ???????????????????????##??????# #???## | | ????????????????????????????????# #???##" | | ?????????????????????????????????# ????#"" | | ??????????????????????????????????? ??##" | | ???????????????????????????????????? ?#"" | | ??????????????????????????????????????#""" | | ?????????????????????????????????????#""" | | ?????????????????????????????????????#""" | | ?????????????????????????????????????#"" | | ?????????????????????????????????????#""" | | ?????????????????????????????????????#"" | | ?????????????????????????????????????##"" | | ??????????????????????????????????????#"""" | | ??????????????????????????????????????## | | ???????????????????????????????????????#" | | ???????????????????????????????????????#"""" | | ???????????????????????????????????????#"" | | ????????????????????????????????????????" | +----------------------------------------------------+ Best States ------------- Heat Dissipation 28 Energy Generation 12 Energy Capacity 265 Matter Stores 300 Matter Capacity 300 Sight Range 16 Terrain Scan Density 10 Armor Coverage 150 Evasion (%) 40 Targeting Accuracy 5 Recoil Reduction 3 Item Schematics ----------------- Hcp. Storage Unit | -10/Materials | Hacked Robot Schematics ------------------ None Fabricated ------------ Nothing Alien Tech Used ----------------- None Achievements -------------- None Challenges ------------ None Game ------ Seed HellfireChromaticPrototype Manual? 0 Play Time 00:25:56 Cumulative 268.3 hours Start 2022.07.30 @ 09:26:29 End 2022.07.30 @ 09:47:27 Sessions 1 Manual Loads 0 Difficulty Rogue Special Mode None Game No. 373 Rogue 286 Adventurer 87 Explorer 0 Win Type - Total 9 Types 4/0/3/1/1/0/0/0/0 Lore% 77 Gallery% 80 Achievement% 70 Wizard Run 0 Options --------- ASCII 0 Keyboard 1 Movement Numpad Keybinds 0 Fullscreen 1 Font 18/Smallcaps Map View 76x50 Tactical HUD 1 Map Filters NONE Filters NONE Steam 1 RUN: 77ad5958-ff12-4341-bafc-d75d48164487